bitfinex/quotes_ETHUSD_20240614
["timestamp","ask_amount","ask_price","bid_price","bid_amount"]
[1718373450929,0.08749551,3511.5,3511.3,2.84794]
[1718373451569,0.08749551,3511.5,3511.4,2.84786]
[1718373452147,0.08749551,3511.5,3511.4,5.69572]
[1718373453567,2.84711,3512.4,3512.0,2.84732]
[1718373453737,1.51956572,3512.3,3512.0,2.84732]
[1718373453941,4.36672572,3512.3,3512.0,2.84732]
[1718373454768,0.08612058,3512.3,3512.2,2.84721]
[1718373454941,0.08612058,3512.3,3512.2,5.69442]
[1718373456065,0.08612058,3512.3,3512.2,8.54163]
[1718373456960,0.08612058,3512.3,3512.2,8.53670771]
[1718373459252,0.08612058,3512.3,3512.2,5.68949771]
[1718373459778,0.08612058,3512.3,3512.0,2.84737]
[1718373459983,0.37943064,3512.3,3512.0,2.84737]
[1718373460708,1.43344514,3512.2,3511.7,1.683]
[1718373460842,2.84739,3512.0,3511.7,4.5306]
[1718373461185,2.84739,3512.0,3511.7,2.8476]
[1718373462184,2.84739,3512.0,3511.8,2.84753]
[1718373462372,3.51158013,3512.0,3511.8,2.84753]
[1718373463388,3.51158013,3512.0,3511.7,2.8476]
[1718373463555,2.84748,3511.9,3511.7,2.8476]
[1718373464520,1.43344514,3511.8,3511.3,8.953]
[1718373464713,2.84774,3511.6,3511.3,10.11794]
[1718373464900,2.84774,3511.6,3511.3,2.84794]
[1718373465611,2.84774,3511.6,3511.4,2.84786]
[1718373467812,2.84774,3511.6,3511.3,2.84794]
[1718373472439,2.84774,3511.6,3511.4,2.84784]
[1718373472636,3.05744353,3511.7,3511.4,2.84784]
[1718373472793,4.49088867,3511.7,3511.4,2.84784]
[1718373473131,4.49088867,3511.7,3511.5,2.84776]
[1718373473515,3.58154587,3511.6,3511.4,2.84784]
[1718373475828,0.73383587,3511.6,3511.4,2.84786]
[1718373477147,0.73383587,3511.6,3511.5,2.84778]
[1718373477440,1.43344514,3511.7,3511.5,2.84778]
[1718373477753,2.52891048,3512.3,3512.0,2.84737]
[1718373477754,2.47942058,3512.3,3512.0,2.84737]
[1718373477934,1.43344514,3512.2,3512.0,2.84737]
[1718373478451,1.43344514,3512.2,3512.1,2.84729]
[1718373478452,1.02137157,3512.2,3512.1,2.84729]
[1718373478604,2.93327058,3512.3,3512.1,2.84729]
[1718373478843,4.36671572,3512.3,3512.1,3.54829]
[1718373480840,4.36671572,3512.3,3512.1,2.84729]
[1718373481289,4.36671572,3512.3,3511.9,5.69483]
[1718373481497,4.36671572,3512.3,3512.0,2.84737]
[1718373481652,5.08808529,3512.3,3512.0,2.84737]
[1718373483592,0.08612058,3512.3,3512.2,2.84721]
[1718373485196,0.08612058,3512.3,3512.2,5.69442]
[1718373485796,0.08612058,3512.3,3512.2,5.69308377]
[1718373487792,0.08612058,3512.3,3512.2,2.84587377]
[1718373490606,1.51956572,3512.3,3511.5,1.71]
[1718373490814,1.95622229,3512.3,3511.5,1.71]
[1718373490995,2.8473,3512.1,3511.8,2.84748]
[1718373495558,2.84739,3512.0,3511.8,2.84748]
[1718373497450,2.84739,3512.0,3511.7,2.84759]
[1718373500267,2.84739,3512.0,3511.8,2.84753]
[1718373500976,2.84739,3512.0,3511.9,0.701]
[1718373502870,1.95622229,3512.3,3511.9,0.701]
[1718373503168,4.36671572,3512.3,3512.1,0.701]
[1718373506079,1.51956572,3512.3,3512.1,3.54826]
[1718373506438,1.51956572,3512.3,3512.2,2.84721]
[1718373508816,1.51956572,3512.3,3512.1,3.54827]
[1718373510340,1.51956572,3512.3,3511.4,10.11785]
[1718373510341,2.84751,3511.9,3511.4,10.11785]
[1718373510571,2.84741,3512.0,3511.4,10.11785]
[1718373510572,4.28099514,3511.8,3511.5,2.84776]
[1718373510892,4.28099514,3511.8,3511.7,0.701]
[1718373513278,7.12854514,3511.8,3511.7,0.701]
[1718373513499,8.40701627,3511.8,3511.7,0.701]
[1718373520382,2.84773,3511.6,3511.1,5.69613]
[1718373520583,7.12884514,3511.6,3511.5,0.701]
[1718373520810,8.25433177,3511.6,3511.5,0.701]
[1718373521360,2.84798,3511.3,3510.5,7.27]
[1718373521491,2.84812,3511.1,3510.7,5.22231]
[1718373521687,2.84812,3511.1,3511.0,0.701]
[1718373523324,2.84784,3511.5,3511.0,3.54918]
[1718373523489,4.28131514,3511.4,3511.3,0.701]
[1718373524840,2.84756,3511.8,3511.5,2.84778]
[1718373525007,3.0,3511.7,3511.5,3.54878]
[1718373525544,3.0,3511.7,3511.4,2.84784]
[1718373525837,3.0,3511.7,3511.5,2.84778]
[1718373528648,5.84762,3511.7,3511.4,2.84784]
[1718373528816,2.84762,3511.7,3511.5,0.701]
[1718373529024,4.28100514,3511.8,3511.6,0.701]
[1718373535280,4.28100514,3511.8,3511.4,2.84784]
[1718373535281,2.84762,3511.7,3511.4,2.84784]
[1718373535575,2.84762,3511.7,3511.4,3.54884]
[1718373538536,2.8477,3511.6,3511.4,3.54884]
[1718373539030,2.8477,3511.6,3511.4,0.701]
[1718373540466,1.43344514,3511.5,3510.9,7.27]
[1718373540666,2.84819,3511.0,3510.9,7.27]
[1718373540907,7.12982514,3511.0,3510.9,7.27]
[1718373541363,2.84874,3510.4,3510.2,2.4366]
[1718373541708,2.84874,3510.4,3509.9,5.28566]
[1718373541709,2.84881,3510.3,3509.9,5.28566]
[1718373542008,2.84881,3510.3,3510.2,0.701]
[1718373542902,2.84885,3510.2,3510.0,0.701]
[1718373543106,2.84892,3510.1,3510.0,0.701]
[1718373544411,2.84892,3510.1,3509.7,2.84922]
[1718373544412,2.84903,3510.0,3509.7,2.84922]
[1718373544571,2.84903,3510.0,3509.8,0.701]
[1718373546233,2.84903,3510.0,3509.7,2.84922]
[1718373546551,2.84903,3510.0,3509.9,0.701]
[1718373546670,2.84944,3509.5,3509.0,7.27]
[1718373546871,2.84917,3509.8,3509.4,0.701]
[1718373547105,4.28261514,3509.8,3509.4,0.701]
[1718373547319,2.84926,3509.7,3509.4,0.701]
[1718373547608,2.84943,3509.5,3508.9,2.84982]
[1718373547910,2.8495,3509.4,3509.0,2.84974]
[1718373548108,2.84957,3509.3,3509.0,2.84974]
[1718373548287,2.84957,3509.3,3509.2,0.701]
[1718373549300,2.84949,3509.4,3509.2,0.701]
[1718373549979,2.84949,3509.4,3509.0,2.84974]
[1718373550173,2.84949,3509.4,3509.3,0.701]
[1718373550614,2.84941,3509.5,3508.9,2.84988]
[1718373550913,2.84948,3509.4,3509.2,0.701]
[1718373551208,1.43344514,3509.3,3508.4,10.12028]
[1718373551407,2.84965,3509.2,3508.8,2.84997]
[1718373551608,2.84965,3509.2,3509.1,0.701]
[1718373552409,4.28302514,3509.3,3509.1,0.701]
[1718373552588,2.84965,3509.2,3509.1,0.701]
[1718373553310,2.84983,3509.0,3508.7,2.85004]
[1718373553514,2.84995,3508.9,3508.5,5.33411]
[1718373553698,2.84995,3508.9,3508.7,0.701]
[1718373553886,4.28339514,3508.9,3508.4,10.12029]
[1718373554112,7.13335514,3508.9,3508.8,0.701]
[1718373554313,3.60355983,3509.2,3508.8,0.701]
[1718373554518,1.43344514,3509.1,3508.8,0.701]
[1718373554719,2.84982,3509.0,3508.8,0.701]
[1718373555103,1.43344514,3509.1,3508.8,3.55097]
[1718373555426,2.84936,3509.6,3508.8,3.55097]
[1718373555427,2.84936,3509.6,3509.0,3.55081]
[1718373555620,2.84949,3509.4,3509.0,3.55081]
[1718373557333,5.07842414,3509.5,3509.1,2.84967]
[1718373557534,5.07842414,3509.5,3509.4,2.84948]
[1718373557535,0.795569,3509.5,3509.4,2.84948]
[1718373557738,3.0,3509.7,3509.2,0.701]
[1718373557914,1.43344514,3509.6,3509.2,0.701]
[1718373558107,1.43344514,3509.6,3509.3,2.84956]
[1718373558307,0.71313151,3510.0,3508.9,2.84987]
[1718373558308,2.84908,3509.9,3509.4,0.701]
[1718373558528,1.43344514,3509.8,3509.6,0.701]
[1718373558713,4.28261514,3509.8,3509.6,0.701]
[1718373558912,4.28261514,3509.8,3509.4,2.84946]
[1718373558913,2.84924,3509.7,3509.4,2.84946]
[1718373559142,2.84934,3509.6,3509.4,0.701]
[1718373559515,2.84934,3509.6,3509.2,0.701]
[1718373559921,4.28270514,3509.7,3509.2,3.55064]
[1718373560542,4.28270514,3509.7,3509.3,0.701]
[1718373560868,4.28270514,3509.7,3509.3,2.84956]
[1718373561067,5.17915,3509.6,3509.2,3.55063]
[1718373561250,5.17915,3509.6,3509.3,2.84955]
[1718373561425,2.84941,3509.5,3509.2,3.55064]
[1718373562166,2.3298,3509.6,3509.0,0.701]
[1718373562462,2.8495,3509.4,3509.1,2.84966]
[1718373562826,2.8495,3509.4,3509.0,0.701]
[1718373562827,2.8495,3509.4,3509.0,3.5508]
[1718373563369,2.8495,3509.4,3509.1,2.84972]
[1718373564463,2.8495,3509.4,3509.2,0.701]
[1718373564960,2.8495,3509.4,3509.1,2.84972]
[1718373565162,2.8495,3509.4,3509.1,3.55072]
[1718373565549,2.84957,3509.3,3509.1,0.701]
[1718373566842,2.84957,3509.3,3509.0,2.84979]
[1718373567032,2.84957,3509.3,3509.0,3.55079]
[1718373567232,2.84957,3509.3,3508.8,3.02709824]
[1718373567233,2.84957,3509.3,3508.9,2.84987]
[1718373567476,2.84957,3509.3,3509.0,0.701]
[1718373568264,2.84971,3509.2,3509.0,0.701]
[1718373571064,2.84973,3509.1,3509.0,0.701]
[1718373571265,2.84983,3509.0,3508.9,0.701]
[1718373571642,2.84989,3508.9,3508.8,0.17720824]
[1718373571847,2.84989,3508.9,3508.8,0.87820824]
[1718373572632,7.13322514,3508.9,3508.8,0.17720824]
[1718373575965,8.33150396,3508.9,3508.8,0.17720824]
[1718373581401,11.18139396,3508.9,3508.8,0.17720824]
[1718373582044,8.33150396,3508.9,3508.8,0.17720824]
[1718373582313,7.13322514,3508.9,3508.8,0.17720824]
[1718373582648,0.04949381,3509.5,3508.8,0.17720824]
[1718373582649,2.2506,3510.1,3508.9,2.4419]
[1718373582874,1.43344514,3510.0,3509.5,0.701]
[1718373583046,2.84918,3509.8,3509.3,2.84955]
[1718373583248,2.8496,3509.3,3508.9,5.29173]
[1718373583446,2.8495,3509.4,3509.0,0.701]
[1718373583751,1.43344514,3509.4,3509.2,2.84963]
[1718373584282,1.43344514,3509.4,3509.1,0.701]
[1718373584283,1.43344514,3509.4,3509.1,2.84972]
[1718373584482,1.43344514,3509.4,3509.2,2.84963]
[1718373584685,1.43344514,3509.4,3509.2,3.55063]
[1718373585192,1.43344514,3509.4,3509.2,2.84963]
[1718373586373,1.43344514,3509.4,3509.3,2.84957]
[1718373587216,3.04948416,3510.3,3509.4,2.84944]
[1718373587517,4.28230514,3510.2,3509.7,2.84923]
[1718373587815,2.84894,3510.1,3509.7,2.84923]
[1718373587956,4.28245514,3510.0,3509.6,2.84931]
[1718373588295,5.09939,3509.9,3509.6,2.84931]
[1718373589262,6.53283514,3509.9,3509.6,2.84931]
[1718373591376,6.53283514,3509.9,3509.5,2.84938]
[1718373591580,2.84917,3509.8,3509.5,2.84938]
[1718373592701,2.84917,3509.8,3509.4,2.84946]
[1718373593193,2.84917,3509.8,3508.5,2.85021]
[1718373593194,2.84971,3509.2,3508.5,2.85021]
[1718373593409,2.84974,3509.1,3508.5,2.85021]
[1718373593559,2.84974,3509.1,3508.6,0.701]
[1718373593560,2.84985,3509.0,3508.6,0.701]
[1718373594002,2.84994,3508.9,3508.7,0.701]
[1718373596213,7.13338514,3508.8,3508.7,0.701]
[1718373596380,2.85006,3508.7,3508.5,0.701]
[1718373596711,4.28350514,3508.7,3508.5,0.701]
[1718373597594,4.28350514,3508.7,3508.4,2.85029]
[1718373597798,4.28350514,3508.7,3508.4,3.55129]
[1718373598414,4.28350514,3508.7,3508.6,0.701]
[1718373599165,2.84982,3509.0,3508.6,0.701]
[1718373599387,2.84973,3509.1,3508.8,3.55096]
[1718373599715,4.28317514,3509.1,3508.8,3.55096]
[1718373599886,4.28317514,3509.1,3509.0,0.701]
[1718373599887,1.43344514,3509.1,3509.0,0.701]
[1718373600080,1.43344514,3509.1,3509.0,0.69408]
[1718373600286,8.55114,3508.3,3507.5,2.44]
[1718373600582,9.98458514,3508.3,3507.6,2.85093]
[1718373600812,10.68558514,3508.3,3507.1,2.44]
[1718373601017,7.13420514,3508.3,3507.7,0.701]
[1718373601180,7.13420514,3508.3,3507.7,3.55186]
[1718373601596,5.23355,3508.5,3508.0,2.85054]
[1718373601597,2.3833,3508.5,3508.0,2.85054]
[1718373601827,5.85032,3508.4,3508.1,0.701]
[1718373602124,10.97854,3508.3,3507.2,2.3143]
[1718373602328,15.81236514,3508.3,3507.3,0.701]
[1718373602828,15.81236514,3508.3,3507.9,2.85067]
[1718373602829,1.43344514,3508.3,3507.9,2.85067]
[1718373603066,2.08725011,3509.0,3508.3,2.85038]
[1718373603067,2.3948,3509.0,3508.3,2.85038]
[1718373603243,0.49297231,3509.6,3508.5,2.85014]
[1718373603387,1.43344514,3509.5,3509.2,2.84964]
[1718373603582,1.43344514,3509.5,3509.0,2.3917]
[1718373603806,2.84893,3510.1,3509.4,2.84948]
[1718373604016,2.4409,3510.3,3509.4,2.84941]
[1718373604017,2.84915,3509.9,3509.4,2.84941]
[1718373604287,11.39892,3509.1,3509.0,2.3917]
[1718373604601,11.39892,3509.1,3508.2,0.1208606]
[1718373604602,2.8503,3508.4,3508.2,0.1208606]
[1718373604807,2.85005,3508.8,3508.2,0.1208606]
[1718373604990,4.28350514,3508.7,3508.2,0.1208606]
[1718373605189,2.08725011,3509.7,3508.5,2.4628]
[1718373605417,0.49291298,3509.9,3509.8,8.54748]
[1718373605641,2.2741,3511.1,3509.8,8.54748]
[1718373605642,0.08612058,3511.4,3509.8,2.84916]
[1718373605925,2.84795,3511.3,3510.6,2.84848]
[1718373606139,2.84799,3511.3,3510.6,2.84848]
[1718373606286,2.84813,3511.1,3510.6,2.84848]
[1718373606490,2.84813,3511.1,3510.7,2.84843]
[1718373606725,2.84813,3511.1,3509.9,2.84905]
[1718373606726,2.8483,3510.9,3509.9,2.84905]
[1718373606930,0.569648,3510.8,3510.4,2.84867]
[1718373607226,2.84823,3511.0,3510.4,2.84867]
[1718373607589,2.84827,3510.9,3510.6,2.84848]
[1718373607929,2.84901,3510.0,3509.4,2.84943]
[1718373608092,2.84892,3510.1,3509.7,2.84922]
[1718373608456,2.84892,3510.1,3509.5,2.84938]
[1718373608457,2.84907,3510.0,3509.4,2.84944]
[1718373608727,2.0890108,3509.9,3509.4,2.84944]
[1718373608890,0.08576866,3509.9,3509.8,8.54748]
[1718373609199,1.5192138,3509.9,3509.6,2.84927]
[1718373609414,1.43344514,3509.8,3509.6,2.84927]
[1718373609588,2.84933,3509.6,3509.1,2.84971]
[1718373609783,1.43344514,3509.5,3509.3,2.84956]
[1718373610091,1.43344514,3509.5,3509.0,2.84974]
[1718373610486,1.43344514,3509.5,3509.4,2.84948]
[1718373610704,0.08576866,3509.9,3509.8,2.84916]
[1718373611100,0.08576866,3509.9,3509.8,5.69832]
[1718373611371,0.08576866,3509.9,3509.8,8.54748]
[1718373612262,0.08576866,3509.9,3509.8,11.39664]
[1718373612609,2.84803,3511.2,3510.8,2.84834]
[1718373612810,2.36069682,3511.1,3511.0,2.84819]
[1718373613053,0.92725168,3511.1,3511.0,5.69638]
[1718373613348,0.08761797,3511.1,3511.0,11.39276]
[1718373613806,0.08761797,3511.1,3511.0,8.54457]
[1718373614002,0.08761797,3511.1,3511.0,2.84819]
[1718373614434,1.52106311,3511.1,3510.8,2.8483]
[1718373614607,1.87034645,3511.0,3510.7,2.84842]
[1718373614807,1.87034645,3511.0,3510.9,2.84827]
[1718373615042,2.84849,3510.7,3510.3,2.84875]
[1718373615272,2.84849,3510.7,3509.4,2.417]
[1718373615273,1.43344514,3510.7,3510.4,2.84866]
[1718373615406,0.43690131,3511.0,3510.2,5.69766]
[1718373615407,0.43690131,3511.0,3510.2,2.84881]
[1718373615607,1.43344514,3511.0,3510.9,2.84827]
[1718373616033,1.43344514,3511.0,3510.8,2.84829]
[1718373616343,2.84836,3510.8,3510.5,2.84859]
[1718373616643,2.84836,3510.8,3510.4,2.84867]
[1718373616644,1.43344514,3510.7,3510.4,2.84867]
[1718373617054,2.84853,3510.6,3509.8,1.686]
[1718373617352,4.71031265,3510.5,3509.8,2.84915]
[1718373617518,1.86164265,3510.5,3510.2,2.84882]
[1718373618441,1.86164265,3510.5,3509.8,2.84915]
[1718373618442,2.84892,3510.1,3509.8,2.84913]
[1718373618642,2.3972,3510.9,3509.4,2.84941]
[1718373618643,2.84918,3509.8,3509.4,2.84941]
[1718373618974,1.43344514,3509.7,3509.4,2.84947]
[1718373619133,1.43344514,3509.7,3509.0,2.84981]
[1718373619134,2.84941,3509.5,3509.0,2.84981]
[1718373619335,1.43344514,3509.5,3509.2,2.84964]
[1718373619543,1.43344514,3509.4,3509.1,2.84973]
[1718373619852,1.43344514,3509.4,3509.3,2.84957]
[1718373620145,1.43344514,3509.4,3508.9,2.84983]
[1718373620363,1.43344514,3509.4,3509.1,2.84972]
[1718373620656,1.43344514,3509.4,3508.7,2.85001]
[1718373620657,2.84965,3509.2,3508.9,2.84989]
[1718373620964,4.99621565,3509.4,3508.8,2.84997]
[1718373620965,4.28318514,3509.1,3508.8,2.84997]
[1718373621261,1.43344514,3509.1,3508.9,2.84988]
[1718373621621,2.84981,3509.0,3508.5,2.85016]
[1718373621882,2.85006,3508.7,3508.2,0.1208606]
[1718373622025,1.43344514,3508.6,3508.2,0.1208606]
[1718373622231,1.43344514,3508.6,3508.3,0.06222965]
[1718373622429,1.43344514,3508.6,3508.4,2.85023]
[1718373622963,1.43344514,3508.6,3508.5,5.70044]
[1718373623454,5.84943,3509.5,3508.9,2.84987]
[1718373623455,3.0,3509.5,3508.9,2.84987]
[1718373623614,2.84981,3509.1,3508.7,2.85002]
[1718373623813,1.43344514,3509.0,3508.7,2.85002]
[1718373624254,2.8503,3508.4,3508.2,0.1208606]
[1718373624467,4.28382514,3508.3,3508.2,0.1208606]
[1718373624761,1.43344514,3508.3,3508.2,0.16765949]
[1718373626363,2.84971,3509.2,3508.5,2.85018]
[1718373626700,2.84993,3508.9,3508.5,2.85014]
[1718373626977,2.84989,3509.0,3508.6,2.89709889]
[1718373626978,1.43344514,3508.8,3508.6,2.89709889]
[1718373628001,1.43344514,3508.8,3508.7,2.85005]
[1718373628487,1.43344514,3508.8,3508.7,2.89270988]
[1718373630705,0.08737705,3509.1,3509.0,2.84981]
[1718373630900,2.84988,3509.0,3508.7,2.89270988]
[1718373631106,1.43344514,3508.9,3508.8,2.84997]
[1718373631408,1.43344514,3508.9,3508.5,2.85021]
[1718373631768,4.28335514,3508.9,3508.4,2.85029]
[1718373632169,4.28335514,3508.9,3508.5,2.85015]
[1718373632369,1.43344514,3508.9,3508.6,2.85011]
[1718373632670,2.85004,3508.8,3508.4,2.85029]
[1718373632870,2.85014,3508.6,3508.2,0.1208606]
[1718373633066,2.85037,3508.4,3508.2,0.1208606]
[1718373633277,1.43344514,3508.3,3508.2,0.1208606]
[1718373633786,4.28382514,3508.3,3508.2,0.1208606]
[1718373634298,8.13262465,3508.3,3508.2,0.1208606]
[1718373634872,10.98300465,3508.3,3508.2,0.1208606]
[1718373635108,13.98300465,3508.3,3508.2,0.1208606]
[1718373635497,17.38338465,3508.3,3508.2,0.1208606]
[1718373635814,14.53300465,3508.3,3508.2,0.1208606]
[1718373635992,11.13262465,3508.3,3508.2,0.1208606]
[1718373636313,13.98300465,3508.3,3508.2,0.1208606]
[1718373636609,16.83338465,3508.3,3508.2,0.1208606]
[1718373636781,17.38338465,3508.3,3508.2,0.1208606]
[1718373636980,14.53300465,3508.3,3508.2,0.1208606]
[1718373637181,8.28224465,3508.3,3508.2,0.1208606]
[1718373637398,13.98300465,3508.3,3508.2,0.1208606]
[1718373637593,11.13262465,3508.3,3508.2,0.1208606]
[1718373637810,8.28224465,3508.3,3508.2,0.1208606]
[1718373638008,11.13262465,3508.3,3508.2,0.1208606]
[1718373639615,13.98300465,3508.3,3508.2,0.1208606]
[1718373639920,13.98300465,3508.3,3506.2,2.3562]
[1718373639921,13.73934465,3508.3,3506.2,2.3562]
[1718373640089,1.43344514,3506.9,3506.3,0.04877767]
[1718373640292,1.43344514,3506.9,3506.6,2.85174]
[1718373640293,4.28496514,3506.9,3506.6,2.85174]
[1718373640707,2.85104,3507.5,3506.8,2.85159]
[1718373641025,3.0,3507.4,3506.7,0.03861646]
[1718373641233,2.85094,3507.7,3507.2,2.85123]
[1718373641390,2.34717705,3509.1,3507.3,2.4239]
[1718373641579,2.85073,3507.9,3507.4,2.85103]
[1718373641774,4.28423514,3507.8,3507.4,0.03790675]
[1718373642016,2.85103,3507.5,3507.4,0.03790675]
[1718373642321,2.85103,3507.5,3506.7,2.85167]
[1718373642322,2.8514,3507.1,3506.7,2.85167]
[1718373642638,1.43344514,3507.0,3506.8,0.03501368]
[1718373642805,1.43344514,3507.0,3506.8,2.88660368]
[1718373642983,1.43344514,3507.0,3506.6,2.85176]
[1718373643184,4.28490514,3507.0,3506.9,0.03841365]
[1718373643383,2.85153,3506.9,3506.6,2.85175]
[1718373643625,4.28489514,3507.0,3506.6,2.85175]
[1718373643866,4.28489514,3507.0,3506.7,2.85166]
[1718373644180,4.28489514,3507.0,3506.6,2.85175]
[1718373644671,2.85152,3506.9,3506.3,2.85198]
[1718373644886,2.85185,3506.5,3506.1,2.85216]
[1718373645189,1.43344514,3506.8,3505.7,2.85247]
[1718373645190,2.85161,3506.8,3506.4,2.8519]
[1718373645320,1.43344514,3506.7,3506.4,2.8519]
[1718373645823,1.43344514,3506.7,3506.5,2.85184]
[1718373646064,2.85177,3506.6,3505.7,2.85247]
[1718373646279,4.28531514,3506.5,3505.4,5.10073]
[1718373646595,4.28531514,3506.5,3505.6,2.85256]
[1718373646596,2.85201,3506.3,3505.6,2.85256]
[1718373646899,2.85249,3505.8,3505.4,2.85273]
[1718373647059,2.85234,3505.9,3505.0,2.85303]
[1718373647060,1.43344514,3505.7,3505.3,5.31198284]
[1718373647220,2.85274,3505.4,3505.3,2.45917284]
[1718373647423,7.13892514,3505.4,3505.3,2.45917284]
[1718373647625,4.28618514,3505.4,3505.3,2.45917284]
[1718373648223,7.13892514,3505.4,3505.3,2.45917284]
[1718373648664,3.285234,3505.8,3505.4,2.85274]
[1718373648837,1.43344514,3505.8,3505.5,2.85262]
[1718373649152,0.04841405,3506.2,3505.8,2.85236]
[1718373649352,1.43344514,3505.9,3505.5,0.02912747]
[1718373649548,2.85257,3505.6,3505.5,0.02912747]
[1718373649768,4.28601514,3505.6,3505.5,0.02912747]
[1718373650229,1.43344514,3505.6,3505.5,2.88178747]
[1718373650565,1.43344514,3505.6,3505.5,5.70532]
[1718373651068,0.04833204,3506.1,3506.0,2.85225]
[1718373651226,1.83496494,3506.1,3506.0,2.85225]
[1718373651431,2.85241,3505.8,3505.5,2.85265]
[1718373651663,1.43344514,3505.7,3505.5,2.85265]
[1718373652262,2.85274,3505.4,3505.3,2.45917284]
[1718373652465,7.56754365,3505.4,3505.3,2.45917284]
[1718373652768,4.71480365,3505.4,3505.3,2.45917284]
[1718373653354,1.43344514,3505.4,3505.3,8.16481284]
[1718373653870,0.04833204,3506.1,3505.4,2.85268]
[1718373654165,0.04833204,3506.1,3506.0,5.7045]
[1718373654362,0.04833204,3506.1,3506.0,8.55675]
[1718373654736,1.48177718,3506.1,3506.0,2.85225]
[1718373654940,1.48177718,3506.1,3506.0,5.7045]
[1718373655140,1.48177718,3506.1,3505.6,2.8525]
[1718373655141,1.6299549,3506.1,3505.6,2.8525]
[1718373655431,1.43344514,3506.0,3505.6,2.8525]
[1718373655655,1.43344514,3506.0,3505.3,5.31191284]
[1718373655854,1.43344514,3506.0,3505.5,2.85265]
[1718373655855,2.85234,3505.9,3505.5,2.85265]
[1718373656041,1.48169662,3505.8,3505.6,2.85257]
[1718373656242,1.48169662,3505.8,3505.7,5.70498]
[1718373657546,1.48169662,3505.8,3505.7,5.73661148]
[1718373658372,0.04825148,3505.8,3505.7,11.44159148]
[1718373659240,2.85172,3506.7,3506.1,2.85212]
[1718373659541,1.48186016,3506.6,3506.5,5.70368]
[1718373659740,1.48186016,3506.6,3506.5,2.85184]
[1718373659965,1.48186016,3506.6,3506.5,2.88554566]
[1718373660479,7.18538016,3506.6,3506.5,0.03370566]
[1718373660787,2.85241,3505.9,3505.5,2.85264]
[1718373661097,2.85241,3505.9,3504.9,2.85312]
[1718373661098,1.43344514,3505.8,3505.6,2.85257]
[1718373662162,4.28593514,3505.8,3505.4,2.85273]
[1718373662368,4.28593514,3505.8,3505.3,5.31199284]
[1718373662369,2.8525,3505.7,3505.3,2.45917284]
[1718373662566,2.43248865,3505.8,3505.3,2.45917284]
[1718373662567,4.28602514,3505.6,3505.3,2.45917284]
[1718373662787,9.99166514,3505.4,3505.3,2.45917284]
[1718373662931,10.54166514,3505.4,3505.3,2.45917284]
[1718373663133,4.43344514,3505.4,3505.3,2.45917284]
[1718373663354,5.47840965,3505.4,3505.3,2.45917284]
[1718373664010,2.47840965,3505.4,3505.3,2.45917284]
[1718373664163,2.47840965,3505.4,3505.3,11.01763284]
[1718373664164,1.43344514,3505.4,3505.3,11.01763284]
[1718373664370,1.43344514,3505.4,3505.3,2.45917284]
[1718373664570,7.13892514,3505.4,3505.3,2.45917284]
[1718373664772,4.83618514,3505.4,3505.3,2.45917284]
[1718373665003,8.74306065,3505.4,3505.3,2.45917284]
[1718373665214,5.34032065,3505.4,3505.3,2.45917284]
[1718373665359,1.43344514,3505.4,3505.3,2.45917284]
[1718373665820,1.43344514,3505.4,3505.3,8.16481284]
[1718373666162,3.0,3506.0,3505.9,2.85233]
[1718373666405,1.43344514,3506.0,3505.9,2.85233]
[1718373666703,0.04841502,3506.6,3506.4,2.85191]
[1718373667020,1.43344514,3506.5,3506.4,5.70383]
[1718373667495,1.43344514,3506.5,3506.4,8.58954017]
[1718373667807,2.85096,3507.6,3506.4,2.88570017]
[1718373667974,12.18,3508.2,3507.0,2.85142]
[1718373667975,2.3141,3508.2,3507.0,2.85142]
[1718373668295,0.04953184,3508.3,3507.8,2.8507]
[1718373668699,0.04953184,3508.3,3507.9,0.03249516]
[1718373668998,1.43344514,3508.2,3507.5,2.85102]
[1718373669291,5.84442451,3508.1,3508.0,0.03241071]
[1718373669470,2.85084,3507.8,3507.3,2.85119]
[1718373669870,2.85084,3507.8,3507.1,2.85129]
[1718373669871,1.43344514,3507.7,3507.4,0.0353763]
[1718373670100,7.13550514,3507.5,3507.4,0.0353763]
[1718373670298,2.85145,3507.0,3506.6,2.85175]
[1718373670621,2.85145,3507.0,3506.4,2.85185]
[1718373670622,4.85524014,3506.9,3506.7,0.03608581]
[1718373670816,4.85524014,3506.9,3506.5,2.85182]
[1718373671004,4.85524014,3506.9,3506.8,0.03299415]
[1718373671168,4.85524014,3506.9,3506.5,2.85182]
[1718373671369,4.85524014,3506.9,3506.4,2.85192]
[1718373671569,3.62226701,3506.8,3506.5,2.88506768]
[1718373671865,1.43344514,3506.7,3506.5,0.03324768]
[1718373672069,2.85204,3506.3,3505.3,7.79888284]
[1718373672395,1.43344514,3506.2,3506.1,2.85217]
[1718373672901,1.43344514,3506.2,3506.0,2.85222]
[1718373673132,1.43344514,3506.2,3506.1,0.03383208]
[1718373673606,2.85227,3506.0,3505.6,2.85257]
[1718373673762,2.85227,3506.0,3505.7,2.85249]
[1718373673763,1.43344514,3505.9,3505.7,2.85249]
[1718373673964,2.85241,3505.8,3505.5,2.85264]
[1718373674169,2.85241,3505.8,3505.3,2.45917284]
[1718373674170,4.28598514,3505.7,3505.3,5.31199284]
[1718373674390,2.85274,3505.4,3505.3,2.45917284]
[1718373674641,4.28618514,3505.4,3505.3,2.45917284]
[1718373674778,7.90780965,3505.4,3505.3,2.45917284]
[1718373675002,8.45780965,3505.4,3505.3,2.45917284]
[1718373675211,11.45780965,3505.4,3505.3,2.45917284]
[1718373677591,5.75232965,3505.4,3505.3,2.45917284]
[1718373677974,8.60506965,3505.4,3505.3,2.45917284]
[1718373678509,14.31054965,3505.4,3505.3,2.45917284]
[1718373678815,17.31054965,3505.4,3505.3,2.45917284]
[1718373679476,14.31054965,3505.4,3505.3,2.45917284]
[1718373681421,2.85454,3503.2,3502.9,2.59377672]
[1718373681631,1.43344514,3503.1,3502.9,2.59377672]
[1718373681778,4.28805514,3503.1,3503.0,0.04331303]